bitfinex/quotes_ETHUSD_20250930
["timestamp","ask_amount","ask_price","bid_price","bid_amount"]
[1759216854113,3.71627337,4199.2,4199.1,0.61628637]
[1759216855095,6.09767935,4199.2,4199.1,0.32308637]
[1759216855302,6.09769056,4199.2,4199.0,0.792]
[1759216855498,5.09246269,4199.1,4199.0,0.792]
[1759216855702,2.711,4199.1,4199.0,0.792]
[1759216857723,8.80869464,4199.2,4199.0,1.0852]
[1759216857925,6.42727337,4199.2,4199.0,1.0852]
[1759216858219,8.80870226,4199.2,4199.0,0.792]
[1759216858605,8.80870226,4199.2,4198.9,0.792]
[1759216858808,6.42727337,4199.2,4198.9,1.0852]
[1759216859006,2.38151857,4199.1,4198.5,0.002]
[1759216859211,2.38151857,4199.1,4199.0,15.292]
[1759216859725,3.71627337,4199.2,4199.0,15.292]
[1759216859924,2.38146269,4199.1,4199.0,15.292]
[1759216862134,2.38146269,4199.1,4199.0,0.792]
[1759216862626,2.38146269,4199.1,4199.0,15.292]
[1759216862926,8.80868621,4199.2,4199.0,15.292]
[1759216863806,2.38146269,4199.1,4199.0,15.292]
[1759216864518,8.80868713,4199.2,4199.0,15.292]
[1759216864696,6.42727337,4199.2,4199.0,15.292]
[1759216864898,2.38146269,4199.1,4199.0,15.292]
[1759216865715,8.80868982,4199.2,4199.0,0.792]
[1759216865916,2.38146269,4199.1,4199.0,0.792]
[1759216866105,2.38146269,4199.1,4199.0,15.292]
[1759216867227,6.42727337,4199.2,4199.0,15.292]
[1759216867228,8.80868669,4199.2,4199.0,15.292]
[1759216867431,6.42727337,4199.2,4199.0,15.292]
[1759216867632,8.80869591,4199.2,4199.0,15.292]
[1759216868736,6.42727337,4199.2,4199.0,15.292]
[1759216869035,8.80869255,4199.2,4199.0,15.292]
[1759216869234,8.80869255,4199.2,4199.0,0.792]
[1759216869406,6.42727337,4199.2,4199.0,0.792]
[1759216869909,8.80867935,4199.2,4199.1,14.5]
[1759216870115,8.80767935,4199.2,4199.1,14.5]
[1759216870635,6.09767935,4199.2,4199.1,14.5]
[1759216870803,8.80767935,4199.2,4199.1,14.5]
[1759216871009,3.42627337,4199.2,4199.1,15.95190637]
[1759216871235,0.2414,4200.1,4199.1,16.24510637]
[1759216871236,2.71,4199.4,4199.1,16.24510637]
[1759216871418,2.71,4199.4,4199.2,0.02381405]
[1759216871419,3.0,4199.3,4199.2,0.02381405]
[1759216871618,3.0,4199.3,4199.1,16.24510637]
[1759216871827,3.71626654,4199.4,4199.1,16.24510637]
[1759216872147,6.09756593,4199.4,4199.1,16.24510637]
[1759216872308,0.71626654,4199.4,4199.2,1.1425]
[1759216872507,0.71626654,4199.4,4199.3,0.02381349]
[1759216873114,0.71626654,4199.4,4199.3,0.81581349]
[1759216873321,2.71,4199.6,4199.3,0.02381349]
[1759216873527,5.09118898,4199.6,4199.3,0.792]
[1759216873763,2.71,4199.6,4199.3,2.24390637]
[1759216874949,5.09118283,4199.6,4199.3,2.24390637]
[1759216875150,5.09118283,4199.6,4199.2,0.2932]
[1759216875351,5.09118283,4199.6,4199.4,14.5]
[1759216875523,2.71,4199.6,4199.4,14.5]
[1759216875951,5.71,4199.6,4199.5,0.02381235]
[1759216876336,3.0,4199.6,4199.4,14.5]
[1759216876536,5.71,4199.6,4199.5,0.02381235]
[1759216877538,5.71,4199.6,4199.4,14.5]
[1759216878340,5.71,4199.6,4199.5,0.02381235]
[1759216879261,3.0,4199.6,4199.5,0.02381235]
[1759216879426,3.0,4199.6,4199.4,14.5]
[1759216880627,3.0,4199.6,4199.5,0.02381235]
[1759216881431,0.71622036,4199.8,4199.5,0.02381235]
[1759216881643,5.09102025,4199.9,4199.5,0.02381235]
[1759216881864,3.0,4199.8,4199.5,0.02381235]
[1759216882166,3.0,4199.8,4199.4,14.5]
[1759216882334,3.0,4199.8,4199.4,17.21]
[1759216883276,6.09721461,4199.9,4199.5,0.792]
[1759216883470,2.38101819,4199.9,4199.5,0.792]
[1759216883785,2.62761819,4199.9,4199.5,0.792]
[1759216883989,0.2466,4199.9,4199.5,0.792]
[1759216884460,2.62765002,4199.9,4199.5,0.792]
[1759216885461,0.2466,4199.9,4199.5,0.792]
[1759216885660,0.71618103,4200.0,4199.5,0.792]
[1759216885869,0.2466,4200.0,4199.5,0.792]
[1759216886172,0.2466,4200.0,4199.6,14.52381179]
[1759216886466,2.62755524,4200.0,4199.6,14.5]
[1759216886767,3.2466,4200.0,4199.6,14.5]
[1759216887269,0.2466,4200.0,4199.6,14.5]
[1759216887472,2.62757396,4200.0,4199.6,14.5]
[1759216887873,3.0,4199.9,4199.6,14.5]
[1759216888057,2.38102226,4199.9,4199.6,14.5]
[1759216888264,2.62762226,4199.9,4199.6,14.5]
[1759216890376,2.38109379,4199.8,4199.6,14.5]
[1759216890677,0.2466,4199.9,4199.6,14.5]
[1759216890972,2.62762612,4199.9,4199.6,14.5]
[1759216891176,3.08302612,4199.9,4199.6,14.5]
[1759216891773,2.83642612,4199.9,4199.6,14.5]
[1759216891981,0.2466,4199.8,4199.6,14.5]
[1759216892646,2.62768315,4199.8,4199.6,14.5]
[1759216893543,2.38108315,4199.8,4199.6,14.5]
[1759216893879,0.702,4199.7,4199.6,15.292]
[1759216894786,8.79212246,4199.7,4199.6,14.5]
[1759216895092,2.38117915,4199.6,4199.5,0.002]
[1759216895560,3.08317915,4199.6,4199.5,0.002]
[1759216895891,3.79942003,4199.6,4199.5,0.002]
[1759216897088,1.41824088,4199.6,4199.5,0.002]
[1759216897506,3.79942003,4199.6,4199.5,0.002]
[1759216900995,1.41824088,4199.6,4199.5,0.002]
[1759216901497,3.79942003,4199.6,4199.5,0.002]
[1759216901999,3.78342003,4199.6,4199.5,0.002]
[1759216902981,6.49242003,4199.6,4199.5,0.002]
[1759216914234,9.3471262,4199.6,4199.5,0.002]
[1759216914433,14.43371578,4199.6,4199.5,0.002]
[1759216915078,9.8071262,4199.6,4199.5,0.002]
[1759216916494,14.43371578,4199.6,4199.5,0.002]
[1759216920193,9.8071262,4199.6,4199.5,0.002]
[1759216926230,9.8061262,4199.6,4199.5,0.002]
[1759216933234,9.49142003,4199.6,4199.5,0.002]
[1759216933445,8.80542003,4199.6,4199.5,0.002]
[1759216933647,6.09742003,4199.6,4199.5,0.002]
[1759216933831,8.80542003,4199.6,4199.5,0.002]
[1759216935852,6.09742003,4199.6,4199.5,0.002]
[1759216936054,8.80542003,4199.6,4199.5,0.002]
[1759216937553,3.71624088,4199.6,4199.5,0.002]
[1759216937850,6.42424088,4199.6,4199.5,0.2952]
[1759216938046,8.80542003,4199.6,4199.5,0.2952]
[1759216938420,6.42424088,4199.6,4199.5,0.2952]
[1759216941042,3.71624088,4199.6,4199.5,0.002]
[1759216941255,3.71624088,4199.6,4199.5,0.2952]
[1759216942556,0.71624088,4199.6,4199.5,0.2952]
[1759216943453,0.71624088,4199.6,4199.5,0.002]
[1759216944950,3.09742003,4199.6,4199.5,0.002]
[1759216945352,0.71624088,4199.6,4199.5,0.002]
[1759216948064,3.09742003,4199.6,4199.5,0.002]
[1759216948844,0.71624088,4199.6,4199.5,0.002]
[1759216952035,3.09742003,4199.6,4199.5,0.002]
[1759216953062,3.32982003,4199.6,4199.5,0.002]
[1759216953431,3.09742003,4199.6,4199.5,0.002]
[1759216953657,3.79052003,4199.6,4199.5,0.002]
[1759216961071,0.71624088,4199.6,4199.5,0.002]
[1759216961575,3.32652003,4199.6,4199.5,0.002]
[1759216961872,3.76462003,4199.6,4199.5,0.002]
[1759216962770,0.94534088,4199.6,4199.5,0.002]
[1759216963854,3.32652003,4199.6,4199.5,0.002]
[1759216964578,0.94534088,4199.6,4199.5,0.002]
[1759216967256,0.71624088,4199.6,4199.5,0.002]
[1759216967472,3.32652003,4199.6,4199.5,0.002]
[1759216967647,3.76462003,4199.6,4199.5,0.002]
[1759216971673,1.38344088,4199.6,4199.5,0.002]
[1759216972058,0.94534088,4199.6,4199.5,0.002]
[1759216972271,3.76462003,4199.6,4199.5,0.002]
[1759216972476,1.38344088,4199.6,4199.5,0.002]
[1759216973380,6.47062003,4199.6,4199.5,0.002]
[1759216974085,7.65578887,4199.6,4199.5,0.002]
[1759216979491,5.27460972,4199.6,4199.5,0.002]
[1759216979687,0.71624088,4199.6,4199.5,0.002]
[1759216979876,3.42224088,4199.6,4199.5,0.002]
[1759216980971,5.80342003,4199.6,4199.5,0.002]
[1759216981371,3.09742003,4199.6,4199.5,0.002]
[1759216981606,5.80342003,4199.6,4199.5,0.002]
[1759216982099,6.03252003,4199.6,4199.5,0.002]
[1759216982605,6.03152003,4199.6,4199.5,0.002]
[1759216983102,5.80242003,4199.6,4199.5,0.002]
[1759216983272,9.46962003,4199.6,4199.5,0.002]
[1759216983599,6.76462003,4199.6,4199.5,0.002]
[1759216983800,9.46962003,4199.6,4199.5,0.002]
[1759216984606,6.76462003,4199.6,4199.5,0.002]
[1759216984785,9.46962003,4199.6,4199.5,0.002]
[1759216985607,6.76462003,4199.6,4199.5,0.002]
[1759216985784,9.46962003,4199.6,4199.5,0.002]
[1759216987689,6.76462003,4199.6,4199.5,0.002]
[1759216987892,9.46962003,4199.6,4199.5,0.002]
[1759216990793,6.76462003,4199.6,4199.5,0.002]
[1759216991195,9.46962003,4199.6,4199.5,0.002]
[1759216991806,6.76462003,4199.6,4199.5,0.002]
[1759216992111,9.46962003,4199.6,4199.5,0.002]
[1759216993906,6.76462003,4199.6,4199.5,0.002]
[1759216994214,9.46962003,4199.6,4199.5,0.002]
[1759216994915,6.76462003,4199.6,4199.5,0.002]
[1759216995115,9.46962003,4199.6,4199.5,0.002]
[1759216995932,6.76462003,4199.6,4199.5,0.002]
[1759216996116,9.46962003,4199.6,4199.5,0.002]
[1759216998927,9.04002003,4199.6,4199.5,0.002]
[1759216999081,9.47382003,4199.6,4199.5,0.002]
[1759216999680,9.04002003,4199.6,4199.5,0.002]
[1759217000081,6.33502003,4199.6,4199.5,0.002]
[1759217000315,9.04002003,4199.6,4199.5,0.002]
[1759217001112,6.33502003,4199.6,4199.5,0.002]
[1759217001281,8.80242003,4199.6,4199.5,0.002]
[1759217001793,6.09742003,4199.6,4199.5,0.002]
[1759217001996,8.80242003,4199.6,4199.5,0.002]
[1759217004221,6.09742003,4199.6,4199.5,0.002]
[1759217004520,8.80242003,4199.6,4199.5,0.002]
[1759217007517,6.09742003,4199.6,4199.5,0.002]
[1759217007686,8.80242003,4199.6,4199.5,0.002]
[1759217009228,3.71624088,4199.6,4199.5,0.002]
[1759217009390,2.38077042,4200.4,4199.5,0.002]
[1759217009391,0.2376,4200.4,4199.5,0.2952]
[1759217009588,0.71619643,4199.8,4199.5,0.2952]
[1759217009788,0.71619643,4199.8,4199.6,0.2932]
[1759217009989,3.09729156,4199.8,4199.6,0.2932]
[1759217010320,3.71619643,4199.8,4199.6,0.2932]
[1759217010624,6.09728968,4199.8,4199.6,0.2932]
[1759217010831,3.71619643,4199.8,4199.5,0.002]
[1759217010990,2.38094518,4200.1,4199.6,0.2932]
[1759217011194,2.38094518,4200.1,4199.7,14.52381122]
[1759217011195,3.71616223,4200.0,4199.7,14.52381122]
[1759217011394,0.71616223,4200.0,4199.7,15.98190112]
[1759217011639,0.71616223,4200.0,4199.8,0.2932]
[1759217011927,7.00720308,4200.7,4199.9,0.31701009]
[1759217011928,3.0,4200.6,4199.9,0.31701009]
[1759217012128,2.705,4200.5,4199.9,0.31701009]
[1759217012290,0.71611266,4200.3,4200.0,0.792]
[1759217012491,5.08568808,4200.5,4200.1,0.2932]
[1759217012724,0.71607676,4200.5,4200.1,0.2932]
[1759217012911,3.71607676,4200.5,4200.1,0.2932]
[1759217013111,3.0,4200.5,4200.1,0.2932]
[1759217013427,3.71606308,4200.6,4200.2,0.67186532]
[1759217013635,3.0,4200.6,4200.3,0.2932]
[1759217013834,3.0,4200.6,4200.2,0.792]
[1759217014206,0.71604599,4200.7,4200.2,0.792]
[1759217014408,3.0,4200.8,4200.0,0.792]
[1759217014605,3.0,4200.8,4200.2,0.792]
[1759217014937,3.0,4200.8,4200.4,0.792]
[1759217015836,3.71601865,4200.9,4200.4,0.792]
[1759217016041,3.95361865,4200.9,4200.4,0.792]
[1759217016246,6.334073,4200.9,4200.4,0.792]
[1759217016408,0.71601865,4200.9,4200.4,0.792]
[1759217016737,0.71601865,4200.9,4200.5,0.1431805]
[1759217017241,0.71601865,4200.9,4200.4,0.792]
[1759217017458,0.001,4201.6,4200.6,0.792]
[1759217017620,0.001,4201.6,4201.0,0.792]
[1759217017809,0.001,4201.6,4201.4,0.792]
[1759217018009,0.001,4201.6,4201.5,5.87610234]
[1759217018249,0.001,4201.6,4201.5,6.70173928]
[1759217018618,0.001,4201.6,4201.5,6.99493928]
[1759217018853,0.001,4201.6,4201.5,19.11483694]
[1759217026257,3.06184569,4201.6,4201.5,14.5]
[1759217026436,0.6818,4201.6,4201.5,14.5]
[1759217026758,3.06184569,4201.6,4201.5,14.5]
[1759217027329,0.6818,4201.6,4201.5,14.5]
[1759217027630,3.06184569,4201.6,4201.5,14.5]
[1759217029570,7.14037358,4201.6,4201.5,14.5]
[1759217029875,2.3802723,4201.2,4201.1,2.703]
[1759217030032,5.30741002,4201.2,4200.7,2.703]
[1759217030361,2.38044228,4200.9,4200.8,15.292]
[1759217030531,0.6808,4200.9,4200.8,14.5]
[1759217030935,0.6808,4200.9,4200.8,15.292]
[1759217031257,0.2497,4200.9,4200.8,15.292]
[1759217031434,0.6808,4200.9,4200.8,15.292]
[1759217032374,3.06124228,4200.9,4200.8,15.292]
[1759217033272,0.6808,4200.9,4200.8,15.292]
[1759217034273,0.6808,4200.9,4200.7,2.703]
[1759217034461,0.6808,4200.8,4200.7,2.703]
[1759217035571,0.6808,4200.8,4200.4,14.5]
[1759217035747,0.6808,4200.7,4200.4,17.203]
[1759217035947,0.6808,4200.6,4200.4,17.203]
[1759217036147,0.2497,4200.5,4200.4,17.995]
[1759217039199,0.4311,4200.6,4200.4,17.995]
[1759217039501,0.2497,4200.7,4200.4,17.995]
[1759217039890,3.09641444,4201.0,4200.4,17.995]
[1759217039891,2.38044568,4200.9,4200.4,17.995]
[1759217040094,0.6808,4200.8,4200.4,17.995]
[1759217040294,2.38044568,4200.9,4200.4,17.995]
[1759217040497,3.06136622,4200.7,4200.4,17.203]
[1759217040793,0.6808,4200.6,4200.4,14.5]
[1759217040994,2.38056622,4200.7,4200.4,14.5]
[1759217040995,0.6808,4200.5,4200.4,14.5]
[1759217041292,3.06146896,4200.5,4200.4,14.5]
[1759217041595,0.6808,4200.5,4200.4,14.5]
[1759217041893,0.6808,4200.5,4200.3,0.002]
[1759217042093,7.80837666,4200.4,4200.3,0.002]
[1759217042298,3.18176664,4200.4,4200.3,0.002]
[1759217042680,3.86256664,4200.4,4200.3,0.002]
[1759217043195,6.56556664,4200.4,4200.3,0.002]
[1759217045566,5.88476664,4200.4,4200.3,0.002]
[1759217045766,6.13446664,4200.4,4200.3,0.002]
[1759217045964,6.56556664,4200.4,4200.3,0.002]
[1759217047600,7.28170152,4200.4,4200.3,0.002]
[1759217047804,6.48066052,4200.4,4200.3,0.002]
[1759217048300,0.71613488,4200.4,4200.3,0.002]
[1759217048599,5.08356936,4200.7,4200.3,0.002]
[1759217048799,3.0,4200.6,4200.3,0.002]
[1759217049098,0.2497,4201.2,4200.4,0.31700725]
[1759217049297,0.2932,4200.8,4200.4,3.02000725]
[1759217049499,0.2932,4200.8,4200.4,3.26708546]
[1759217049675,0.2932,4200.8,4200.5,0.2932]
[1759217049868,0.2932,4200.8,4200.6,0.02380612]
[1759217050071,0.2932,4200.8,4200.5,0.31700668]
[1759217052090,0.2932,4200.8,4200.6,0.792]
[1759217052297,3.2497,4201.2,4200.6,0.792]
[1759217052493,0.71599131,4201.0,4200.6,0.792]
[1759217052681,2.38044228,4200.9,4200.6,0.792]
[1759217052881,2.38054397,4200.8,4200.5,0.792]
[1759217053073,2.38057468,4200.7,4200.5,0.792]
[1759217053703,2.38049209,4200.9,4200.5,0.792]
[1759217053905,2.38051296,4200.8,4200.5,0.792]
[1759217054385,2.62674057,4201.0,4200.5,0.792]
[1759217054586,2.38047826,4200.9,4200.5,0.792]
[1759217054781,2.3805089,4200.8,4200.5,0.792]
[1759217055110,2.38056412,4200.7,4200.5,0.792]
[1759217055316,2.38054537,4200.8,4200.5,0.792]
[1759217056513,2.38054537,4200.8,4200.6,14.5]
[1759217056719,2.38045839,4200.9,4200.6,14.5]
[1759217056917,2.38051132,4200.8,4200.6,14.5]
[1759217057500,3.0,4200.9,4200.6,14.5]
[1759217057820,2.38049895,4200.8,4200.6,14.5]
[1759217058319,0.2463,4200.9,4200.6,14.5]
[1759217058515,2.38049895,4200.8,4200.6,14.5]
[1759217060210,3.2463,4200.9,4200.6,14.5]
[1759217060211,0.2463,4200.9,4200.6,14.5]
[1759217060609,2.38049895,4200.8,4200.6,14.5]
[1759217061603,0.2463,4200.9,4200.6,14.5]
[1759217062122,2.38055562,4200.7,4200.6,15.292]
[1759217062623,2.38055562,4200.7,4200.6,17.995]
[1759217064102,2.38050854,4200.8,4200.6,17.995]
[1759217064715,2.62677208,4200.9,4200.6,17.995]
[1759217065396,2.38051931,4200.8,4200.6,17.995]
[1759217065813,2.38054584,4200.8,4200.6,17.995]
[1759217066487,2.62675928,4200.9,4200.6,17.995]
[1759217066694,0.2463,4200.9,4200.6,17.995]
[1759217067091,2.38053905,4200.8,4200.6,17.995]
[1759217067923,0.2463,4200.9,4200.6,17.995]
[1759217068122,0.6855,4200.9,4200.6,17.995]
[1759217068320,0.6855,4200.9,4200.6,17.997]
[1759217068632,2.38054917,4200.8,4200.6,17.997]
[1759217068825,0.6855,4200.9,4200.6,17.997]
[1759217069134,2.38049895,4200.8,4200.6,17.997]
[1759217069737,0.6855,4200.9,4200.6,17.997]
[1759217070239,0.2329,4200.8,4200.6,17.997]
[1759217070535,2.38050459,4200.8,4200.6,17.997]
[1759217071510,2.38053981,4200.8,4200.6,17.997]
[1759217071710,2.38049895,4200.8,4200.6,17.997]
[1759217072540,0.4392,4200.9,4200.6,17.997]
[1759217072835,2.38055562,4200.7,4200.6,17.997]
[1759217073038,2.38055562,4200.7,4200.6,14.502]
[1759217073244,3.05265562,4200.7,4200.6,17.204]
[1759217075849,3.05265562,4200.7,4200.6,14.502]
[1759217077416,3.05265562,4200.7,4200.6,0.002]
[1759217083476,3.42605132,4200.7,4200.6,0.002]
[1759217083672,6.42605132,4200.7,4200.6,0.002]
[1759217085161,5.75395132,4200.7,4200.6,0.002]
[1759217085350,8.08255562,4200.7,4200.6,0.002]
[1759217085543,8.76045562,4200.7,4200.6,0.002]
[1759217091661,6.05845562,4200.7,4200.6,0.002]
[1759217091855,5.38055562,4200.7,4200.6,0.002]
[1759217092062,3.0,4200.7,4200.6,0.002]
[1759217092572,2.702,4201.2,4200.6,0.2952]
[1759217092773,5.38038563,4201.0,4200.6,0.2952]
[1759217092978,2.38038563,4201.0,4200.6,0.2952]
[1759217093281,2.38038563,4201.0,4200.7,14.5]
[1759217095091,2.38045857,4200.9,4200.7,14.5]
[1759217095258,3.0,4201.1,4200.7,14.5]
[1759217095458,2.38042808,4201.0,4200.7,14.5]
[1759217096072,3.0,4201.1,4200.7,14.5]
[1759217096361,5.702,4201.2,4200.7,14.5]
[1759217096891,8.08227858,4201.2,4200.7,14.5]
[1759217097390,2.38042948,4201.0,4200.7,14.5]
[1759217097699,2.38045153,4200.9,4200.7,14.5]
[1759217098562,2.3803866,4201.0,4200.7,14.5]
[1759217098976,2.3804454,4200.9,4200.7,14.5]
[1759217099497,2.38032896,4201.1,4200.7,14.5]
[1759217099897,2.38040272,4201.0,4200.7,14.5]
[1759217100405,5.702,4201.2,4200.7,14.5]
[1759217100909,2.38035757,4201.1,4200.7,14.5]
[1759217101479,2.38032896,4201.1,4200.7,14.5]
[1759217101809,2.3803737,4201.1,4200.7,14.5]
[1759217102008,2.38039649,4201.0,4200.7,14.5]
[1759217103611,2.38044642,4200.9,4200.7,14.5]
[1759217104315,2.38038562,4201.0,4200.7,14.5]
[1759217104610,2.38046764,4200.9,4200.7,14.5]
[1759217106211,2.38039902,4201.0,4200.7,14.5]
[1759217107196,5.61724527,4201.1,4200.7,14.5]
[1759217107712,2.38039469,4201.0,4200.7,14.5]
[1759217107914,5.6172425,4201.1,4200.7,14.5]
[1759217108612,2.38038669,4201.0,4200.7,14.5]
[1759217111015,0.2369,4201.1,4200.7,14.5]
[1759217111213,3.0,4201.1,4200.7,14.5]
[1759217111516,3.142,4201.3,4200.7,14.5]
[1759217111517,2.38021816,4201.3,4200.8,3.7862]
[1759217111695,2.38014661,4201.5,4201.0,0.792]
[1759217111895,0.001,4201.6,4201.0,3.493]
[1759217112092,5.38108152,4201.6,4201.1,14.5]
[1759217112419,3.001,4201.6,4201.1,14.5]
[1759217112596,2.38015337,4201.5,4201.1,14.5]
[1759217112785,5.62854662,4201.6,4201.1,14.5]
[1759217113216,0.001,4201.6,4201.3,0.792]
[1759217113751,0.001,4201.6,4201.4,0.02380158]
[1759217113931,0.001,4201.6,4201.5,0.792]
[1759217115330,0.001,4201.6,4201.5,1.10900102]
[1759217115851,0.001,4201.6,4201.5,15.60900102]
[1759217116031,0.001,4201.6,4201.5,17.96530234]
[1759217116419,0.001,4201.6,4201.5,15.292]
[1759217116645,0.001,4201.6,4201.5,17.67210234]
[1759217116829,0.001,4201.6,4201.5,17.96530234]
[1759217120255,0.001,4201.6,4201.5,15.292]
[1759217120623,0.001,4201.6,4201.5,17.993]
[1759217120947,0.001,4201.6,4201.5,20.37310234]
[1759217122834,0.001,4201.6,4201.5,20.66630234]
[1759217123652,0.001,4201.6,4201.5,17.67210234]
[1759217123851,0.001,4201.6,4201.5,17.993]
[1759217124222,0.001,4201.6,4201.5,20.37310234]
[1759217125361,0.001,4201.6,4201.5,20.66630234]
[1759217134180,0.001,4201.6,4201.5,20.76171661]
[1759217135375,0.001,4201.6,4201.5,23.29171661]
[1759217136968,0.001,4201.6,4201.5,26.29171661]
[1759217138750,0.001,4201.6,4201.5,26.29371661]
[1759217146589,0.001,4202.1,4201.9,3.17187577]
[1759217146789,0.001,4202.1,4202.0,8.39881913]
[1759217147266,0.001,4202.1,4202.0,22.89881913]
[1759217147676,0.001,4202.1,4202.0,22.99421634]
[1759217149588,0.001,4202.1,4202.0,20.46621634]
[1759217152087,0.2349,4202.1,4202.0,20.46621634]
[1759217154088,0.6671,4202.1,4202.0,20.76721634]
[1759217154287,0.6671,4202.1,4202.0,23.46621634]
[1759217156588,0.6671,4202.1,4202.0,20.76721634]
[1759217156780,0.6671,4202.1,4202.0,16.97521634]
[1759217156982,0.6671,4202.1,4202.0,19.57881913]
[1759217157162,0.6671,4202.1,4202.0,20.37081913]
[1759217158876,0.6671,4202.1,4202.0,17.67181913]
[1759217159417,0.6671,4202.1,4202.0,14.5]
[1759217159783,0.6671,4202.1,4202.0,15.292]
[1759217160209,0.6671,4202.1,4202.0,14.5]
[1759217160598,0.6671,4202.1,4202.0,15.292]
[1759217161119,0.6671,4202.1,4202.0,17.67181913]
[1759217162021,0.6671,4202.1,4202.0,3.17181913]
[1759217163028,0.6671,4202.1,4202.0,0.792]
[1759217163987,1.19623488,4202.1,4202.0,0.792]
[1759217164388,0.6671,4202.1,4202.0,0.792]
[1759217171628,3.04686249,4202.1,4202.0,0.792]
[1759217175704,0.6671,4202.1,4202.0,0.792]
[1759217176635,3.04686249,4202.1,4202.0,0.792]
[1759217177635,0.6671,4202.1,4201.6,0.002]
[1759217178135,0.6965,4202.0,4201.6,0.002]
[1759217178435,2.37998905,4201.7,4201.6,0.002]
[1759217178806,3.07648905,4201.7,4201.6,0.002]
[1759217180240,0.6965,4201.7,4201.6,0.002]
[1759217180619,3.07648905,4201.7,4201.6,0.002]
[1759217186549,3.62212567,4201.7,4201.6,0.002]
[1759217189758,6.62212567,4201.7,4201.6,0.002]
[1759217194360,6.62312567,4201.7,4201.6,0.002]
[1759217200954,5.92662567,4201.7,4201.6,0.002]
[1759217201267,0.001,4201.7,4201.6,0.002]
[1759217204072,2.38098905,4201.7,4201.6,0.002]
[1759217205071,3.08428905,4201.7,4201.6,0.002]
[1759217210752,6.08428905,4201.7,4201.6,0.002]
[1759217212560,11.4314982,4201.7,4201.6,0.002]
[1759217212763,12.8126362,4201.7,4201.6,0.002]
[1759217213279,12.90809943,4201.7,4201.6,0.002]
[1759217213484,13.42133649,4201.7,4201.6,0.002]
[1759217217255,13.42120627,4201.7,4201.6,0.002]
[1759217217569,12.90809943,4201.7,4201.6,0.002]
[1759217217761,7.56089028,4201.7,4201.6,0.002]
[1759217224270,12.18383459,4201.7,4201.6,0.002]
[1759217225066,6.85759028,4201.7,4201.6,0.002]
[1759217225385,5.47645228,4201.7,4201.6,0.002]
[1759217227163,5.71785228,4201.7,4201.6,0.002]
[1759217230707,5.47645228,4201.7,4201.6,0.002]
[1759217232093,5.70435228,4201.7,4201.6,0.002]
[1759217232296,3.09646323,4201.7,4201.6,0.002]
[1759217232465,0.001,4201.7,4201.6,0.2952]
[1759217233368,0.001,4201.7,4201.6,14.7952]
[1759217233568,0.001,4201.7,4201.6,16.35412]
[1759217235289,2.38098905,4201.7,4201.6,16.35412]
[1759217236312,0.001,4201.7,4201.6,1.85412]
[1759217236511,0.001,4201.7,4201.6,0.2952]
[1759217236688,2.38098905,4201.7,4201.6,0.002]
[1759217238817,0.001,4201.7,4201.6,0.002]
[1759217239416,2.38098905,4201.7,4201.6,0.002]
[1759217243925,0.001,4201.7,4201.6,0.002]
[1759217244129,0.001,4201.7,4201.6,1.56092]
[1759217244426,2.38098905,4201.7,4201.6,1.56092]
[1759217244625,2.38098905,4201.7,4201.6,0.002]
[1759217246940,0.001,4201.7,4201.6,0.002]
[1759217247947,2.38098905,4201.7,4201.6,0.002]
[1759217248443,0.001,4201.7,4201.6,0.002]
[1759217248614,2.38098905,4201.7,4201.6,0.002]
[1759217249043,0.001,4201.7,4201.6,0.002]
[1759217251235,2.38098905,4201.7,4201.6,0.002]
[1759217251546,0.001,4201.7,4201.6,0.002]
[1759217254227,2.38098905,4201.7,4201.6,0.002]
[1759217254752,0.001,4201.7,4201.6,0.002]
[1759217257946,2.38098905,4201.7,4201.6,0.002]
[1759217258622,5.61588905,4201.7,4201.6,0.002]
[1759217260527,6.08248905,4201.7,4201.6,0.002]
[1759217260724,3.7025,4201.7,4201.6,0.002]
[1759217261261,3.2359,4201.7,4201.6,0.002]
[1759217261627,5.61588905,4201.7,4201.6,0.002]
[1759217261823,3.2359,4201.7,4201.6,0.002]
[1759217265250,5.61588905,4201.7,4201.6,0.002]
[1759217265650,6.08248905,4201.7,4201.6,0.002]
[1759217266961,6.08198905,4201.7,4201.6,0.002]
[1759217269264,3.702,4201.7,4201.6,0.002]
[1759217280573,3.001,4201.7,4201.6,0.002]
[1759217281384,3.001,4201.7,4201.6,2.699]
[1759217282083,3.001,4201.7,4201.6,17.199]
[1759217282993,3.2354,4201.7,4201.6,17.199]
[1759217284976,3.001,4201.7,4201.6,2.699]
[1759217285498,3.001,4201.7,4201.6,17.199]
[1759217286509,0.001,4201.7,4201.6,20.37104569]
[1759217286696,0.001,4201.7,4201.6,20.66424569]
[1759217287266,0.001,4201.7,4201.6,18.2842]
[1759217287469,0.001,4201.7,4201.6,17.991]
[1759217290895,0.001,4201.7,4201.6,15.294]
[1759217291206,0.001,4201.7,4201.6,17.991]
[1759217292222,0.001,4201.7,4201.6,20.37104569]
[1759217292724,0.001,4201.7,4201.6,17.991]
[1759217293797,0.001,4201.7,4201.6,17.67404569]
[1759217294026,0.001,4201.7,4201.6,20.37104569]